{"text_format":"3","workbook":"xlsx","n_sheets":8,"sheets":["Hovedbok","Kostnader analyse","Kostnader detalj","Momskoder","Kunder","01","Leverandører","02"],"not_rendered":{"defined_names":19,"comments":6,"pivot_tables":2},"read":"whole","date_system":"1900"}

{"sheet":"Hovedbok","index":0,"n_rows":27,"n_cols":6,"rows_kept":27}
[{"$f":"Firma","v":"<Firma>"},{"$nulls":4},{"$f":"År","v":2017}]
[]
[]
["KNR","TEKST","IBSALDO","DEBET","KREDIT","UBSALDO"]
[]
[]
[null,"NB! Legg til nye rader slik at du får plass til alle kontonene uten å overskrive sumlinjene."]
{"$rows_empty":19}
["Sum",null,{"$f":"SUM(C5:C26)","v":{"v":0,"d":"0.00"}},{"$f":"SUM(D5:D26)","v":{"v":0,"d":"0.00"}},{"$f":"SUM(E5:E26)","v":{"v":0,"d":"0.00"}},{"$f":"SUM(F5:F26)","v":{"v":0,"d":"0.00"}}]

{"sheet":"Kostnader analyse","index":1,"n_rows":59,"n_cols":6,"rows_kept":59}
[{"$f":"Firma","v":"<Firma>"},{"$nulls":4},{"$f":"År","v":2017}]
[]
["Analyse (sammenligning) kostnader periode 01-XX"]
[]
["Dataene hentes fra det som er importert til DataRev for årets og de to foregående års perioder."]
["Vær oppmerksom på at med mindre tidligere års data er hentet på nytt (etter årsavslutning) så vil ikke sluttposteringene være med."]
[]
["Konto","Beskrivelse","Dette år","I fjor","I forfjor","Merknad"]
[]
[]
[null,"NB! Legg til nye rader slik at du får plass til alle kontonene uten å overskrive sumlinjen."]
{"$rows_empty":47}
["Sum",null,{"$f":"SUM(C9:C58)","v":0},{"$f":"SUM(D9:D58)","v":0},{"$f":"SUM(E9:E58)","v":0}]

{"sheet":"Kostnader detalj","index":2,"n_rows":59,"n_cols":14,"rows_kept":59}
[{"$f":"Firma","v":"<Firma>"},{"$nulls":12},{"$f":"År","v":2017}]
[]
["Detaljkontroll kostnader periode 01-XX"]
[]
["Utvalg alle over 50 tusen samt 30 (10 uten og 20 med PPS) tilfeldige posteringer mellom 5900 og 7999."]
["Utelukker av- og nedskrivninger, husleie, forsikring (?) og rene periodiseringer. Ender opp med:"]
[]
["BNR","DATO","KNR","KTEKST","BTEKST","BELØP","P","S","M","R","M","K","A","Merknad"]
{"$rows_empty":34}
["Forklaring:"]
["P","Periode (månedsnummer)"]
["S","Bilagsserie"]
["M","Merverdiavgiftskode"]
[]
["Kontrollpunkter:"]
["R","Kostnadene er reelle (gjelder bedriften og er innenfor gitte rammer / fullmakter)"]
["M","Kostnadene er riktig målt (beløp)"]
["K","Kostnadene er riktig klassifisert (riktig konto)"]
["A","Riktig avgiftsbehandling"]
[]
["Symboler:"]
["X","Ok!"]
["—","Feil!"]
["?","Følges opp?"]
[]
["Observasjoner:"]

{"sheet":"Momskoder","index":3,"n_rows":6,"n_cols":11,"rows_kept":6}
[{"$f":"Firma","v":"<Firma>"},{"$nulls":9},{"$f":"År","v":2017}]
[{"$nulls":10},"Periode 01…xx"]
[]
["UTPLUKK TRANSAKSJONER MED MERKELIG KOMBINASJON AV MVA-KODE OG HOVEDBOKSKONTO"]
[]
["bilagsnr","dato","kontonr","kontotekst","bilagstekst","beløp","per","ser","mva","ref","merknad"]

{"sheet":"Kunder","index":4,"n_rows":48,"n_cols":9,"rows_kept":48}
[{"$f":"Firma","v":"<Firma>"},{"$nulls":4},{"$f":"År","v":2017},null,"Summer av UB 31.12"]
[{"$nulls":7},"GRUPPE","Totalt"]
["Analyse kundefordringer pr DD.MM",{"$nulls":6},"(tom)"]
[{"$nulls":7},"Totalsum"]
[]
["Konto","Beskrivelse","IB","Debet","Kredit","UB"]
[1510,{"$f":"VLOOKUP(A7,Hovedbok!A:B,2)","v":{"$error":"#N/A"}},{"$f":"VLOOKUP($A7,Hovedbok!$A:$F,3)","v":{"$error":"#N/A"}},{"$f":"VLOOKUP($A7,Hovedbok!$A:$F,4)","v":{"$error":"#N/A"}},{"$f":"VLOOKUP($A7,Hovedbok!$A:$F,5)","v":{"$error":"#N/A"}},{"$f":"VLOOKUP($A7,Hovedbok!$A:$F,6)","v":{"$error":"#N/A"}}]
["Sum hovedbokskonto(er)",null,{"$f":"SUM(C7:INDIRECT(\"R[-1]C\",))","v":{"$error":"#N/A"}},{"$f":"SUM(D7:INDIRECT(\"R[-1]C\",))","v":{"$error":"#N/A"}},{"$f":"SUM(E7:INDIRECT(\"R[-1]C\",))","v":{"$error":"#N/A"}},{"$f":"SUM(F7:INDIRECT(\"R[-1]C\",))","v":{"$error":"#N/A"}}]
["Sum reskontro",null,{"$f":"'01'!C38","v":0},{"$f":"'01'!D38","v":0},{"$f":"'01'!E38","v":0},{"$f":"'01'!F38","v":0}]
["Avvik",null,{"$f":"SUM(-C8,C9)","v":{"$error":"#N/A"}},{"$f":"SUM(-D8,D9)","v":{"$error":"#N/A"}},{"$f":"SUM(-E8,E9)","v":{"$error":"#N/A"}},{"$f":"SUM(-F8,F9)","v":{"$error":"#N/A"}}]
[]
["Reskontrostatistikk"]
["Debetsaldoer",null,{"$f":"'01'!C39","v":0},null,null,{"$f":"'01'!F39","v":0}]
["Kreditsaldoer",null,{"$f":"'01'!C40","v":0},null,null,{"$f":"'01'!F40","v":0}]
[null,null,{"$f":"SUM(C13:C14)","v":0},null,null,{"$f":"SUM(F13:F14)","v":0}]
[]
["Antall med debetsaldo",null,{"$f":"'01'!C42","v":0},null,null,{"$f":"'01'!F42","v":0}]
["Antall med kreditsaldo",null,{"$f":"'01'!C43","v":0},null,null,{"$f":"'01'!F43","v":0}]
["Antall med saldo",null,{"$f":"SUM(C17:C18)","v":0},null,null,{"$f":"SUM(F17:F18)","v":0}]
[]
["Generert \"Saldoliste m/kredittid\" og limt denne inn i etterfølgende \"ark\" i Excel-arbeidsboken."]
["Foretatt analyser (utplukk / sortering) for å identifisere kunder med lang kredittid (gamle poster eller"]
["sene betalere), kreditsaldoer og eventuelle i seg selv beløpsmessig vesentlige debetsaldoer:"]
[]
["Kontonr","Tekst","Saldo UB","Kredittid","Merknad"]
["Lang kredittid / Kreditsaldoer"]
{"$rows_empty":16}
["Observasjoner:"]
[]
[null,"Generelt en meget / rimelig (u)ryddig reskontro."]
[null,"Ingen / Få / Mange vesentlige gamle poster eller kreditsaldoer."]
[]
[null,"Det er avsatt kr XX tusen til tap på kunder. Avsetningen anses tilstrekkelig ?"]

{"sheet":"01","index":5,"n_rows":44,"n_cols":10,"rows_kept":44}
["KNR","TEKST","IBSALDO","DEBET","KREDIT","UB 31.12","DAGER","SISTE_D","SISTE_K","GRUPPE"]
[]
[]
[null,"NB! Legg til nye rader slik at du får plass til alle kontonene uten å overskrive sumlinjene."]
{"$rows_empty":33}
["Sum",null,{"$f":"SUM(C2:C37)","v":0},{"$f":"SUM(D2:D37)","v":0},{"$f":"SUM(E2:E37)","v":0},{"$f":"SUM(F2:F37)","v":{"v":0,"d":"0.00"}}]
["Sum debet",null,{"$f":"SUMIF(C2:C37,\">0\")","v":{"v":0,"d":"0.00"}},null,null,{"$f":"SUMIF(F2:F37,\">0\")","v":{"v":0,"d":"0.00"}}]
["Sum kredit",null,{"$f":"SUMIF(C2:C37,\"<0\")","v":{"v":0,"d":"0.00"}},null,null,{"$f":"SUMIF(F2:F37,\"<0\")","v":{"v":0,"d":"0.00"}}]
[]
["Antall med debetsaldo",null,{"$f":"COUNTIF(C2:C37,\">0\")","v":0},null,null,{"$f":"COUNTIF(F2:F37,\">0\")","v":0}]
["Antall med kreditsaldo",null,{"$f":"COUNTIF(C2:C37,\"<0\")","v":0},null,null,{"$f":"COUNTIF(F2:F37,\"<0\")","v":0}]
["Antall med saldo",null,{"$f":"SUM(C42:C43)","v":0},null,null,{"$f":"SUM(F42:F43)","v":0}]

{"sheet":"Leverandører","index":6,"n_rows":43,"n_cols":9,"rows_kept":43}
[{"$f":"Firma","v":"<Firma>"},{"$nulls":4},{"$f":"År","v":2017},null,"Summer av UB 31.12"]
[{"$nulls":7},"GRUPPE","Totalt"]
["Analyse av leverandørgjeld pr DD.MM",{"$nulls":6},"(tom)"]
[{"$nulls":7},"Totalsum"]
[]
["Kontonr","Beskrivelse","IB","Debet","Kredit","UB"]
[2410,{"$f":"VLOOKUP(A7,Hovedbok!A:B,2)","v":{"$error":"#N/A"}},{"$f":"VLOOKUP($A7,Hovedbok!$A:$F,3)","v":{"$error":"#N/A"}},{"$f":"VLOOKUP($A7,Hovedbok!$A:$F,4)","v":{"$error":"#N/A"}},{"$f":"VLOOKUP($A7,Hovedbok!$A:$F,5)","v":{"$error":"#N/A"}},{"$f":"VLOOKUP($A7,Hovedbok!$A:$F,6)","v":{"$error":"#N/A"}}]
["Sum hovedbokskonto(er)",null,{"$f":"SUM(C7:INDIRECT(\"R[-1]C\",))","v":{"$error":"#N/A"}},{"$f":"SUM(D7:INDIRECT(\"R[-1]C\",))","v":{"$error":"#N/A"}},{"$f":"SUM(E7:INDIRECT(\"R[-1]C\",))","v":{"$error":"#N/A"}},{"$f":"SUM(F7:INDIRECT(\"R[-1]C\",))","v":{"$error":"#N/A"}}]
["Sum reskontro",null,{"$f":"'02'!C53","v":0},{"$f":"'02'!D53","v":0},{"$f":"'02'!E53","v":0},{"$f":"'02'!F53","v":0}]
["Avvik",null,{"$f":"SUM(-C8,C9)","v":{"$error":"#N/A"}},{"$f":"SUM(-D8,D9)","v":{"$error":"#N/A"}},{"$f":"SUM(-E8,E9)","v":{"$error":"#N/A"}},{"$f":"SUM(-F8,F9)","v":{"$error":"#N/A"}}]
[]
["Reskontrostatistikk"]
["Debetsaldoer",null,{"$f":"'02'!C54","v":0},null,null,{"$f":"'02'!F54","v":0}]
["Kreditsaldoer",null,{"$f":"'02'!C55","v":0},null,null,{"$f":"'02'!F55","v":0}]
[null,null,{"$f":"SUM(C13:C14)","v":0},null,null,{"$f":"SUM(F13:F14)","v":0}]
[]
["Antall med debetsaldo",null,{"$f":"'02'!C57","v":0},null,null,{"$f":"'02'!F57","v":0}]
["Antall med kreditsaldo",null,{"$f":"'02'!C58","v":0},null,null,{"$f":"'02'!F58","v":0}]
["Antall med saldo",null,{"$f":"SUM(C17:C18)","v":0},null,null,{"$f":"SUM(F17:F18)","v":0}]
[]
["Generert \"Saldoliste m/kredittid\" og limt denne inn i etterfølgende \"ark\" i Excel-arbeidsboken."]
["Foretatt analyser (utplukk / sortering) for å identifisere leverandører med lang kredittid (gamle poster)"]
[", debetsaldoer (mulig manglende kostnadsføring):"]
[]
["Kontonr","Tekst","Saldo UB","Kredittid","Merknad"]
["Leverandører"]
[null,"(ingen debetsaldoer)"]
[null,"(ingen gamle)"]
{"$rows_empty":11}
["Konklusjon:"]
[]
[null,"Generelt en meget / relativt (u)ryddig reskontro."]
[null,"Ingen / Få / Mange gamle poster eller debetsaldoer."]

{"sheet":"02","index":7,"n_rows":59,"n_cols":10,"rows_kept":59}
["KNR","TEKST","IBSALDO","DEBET","KREDIT","UB 31.12","DAGER","SISTE_D","SISTE_K","GRUPPE"]
[]
[]
[null,"NB! Legg til nye rader slik at du får plass til alle kontonene uten å overskrive sumlinjene."]
{"$rows_empty":48}
["Sum",null,{"$f":"SUM(C2:C52)","v":0},{"$f":"SUM(D2:D52)","v":0},{"$f":"SUM(E2:E52)","v":0},{"$f":"SUM(F2:F52)","v":{"v":0,"d":"0.00"}}]
["Sum debetsaldoer",null,{"$f":"SUMIF(C2:C52,\">0\")","v":0},null,null,{"$f":"SUMIF(F2:F52,\">0\")","v":{"v":0,"d":"0.00"}}]
["Sum kreditsaldoer",null,{"$f":"SUMIF(C2:C52,\"<0\")","v":0},null,null,{"$f":"SUMIF(F2:F52,\"<0\")","v":{"v":0,"d":"0.00"}}]
[]
["Antall med debetsaldo",null,{"$f":"COUNTIF(C2:C52,\">0\")","v":0},null,null,{"$f":"COUNTIF(F2:F52,\">0\")","v":0}]
["Antall med kreditsaldo",null,{"$f":"COUNTIF(C2:C52,\"<0\")","v":0},null,null,{"$f":"COUNTIF(F2:F52,\"<0\")","v":0}]
["Antall med saldo",null,{"$f":"SUM(C57:C58)","v":0},null,null,{"$f":"SUM(F57:F58)","v":0}]